[Event "Titled Tuesday Blitz October 04 Late 2022"]
[White "Svane, Rasmus"]
[Black "Barria Zuniga, Daniel"]
[WhiteFideId "4657101"]
[BlackFideId "3400816"]
[WhiteElo "2674"]
[BlackElo "2414"]
[Result "1-0"]
[Round "07"]
[TimeControl "180+1"]
[Date "2022.10.04"]
[WhiteClock "0:00:58"]
[BlackClock "0:00:01"]

1. Nf3 {[%clk 0:03:00]}  d5 {[%clk 0:02:59]} 2. g3 {[%clk 0:03:00]}  e6 {[%clk 0:02:59]} 3. Bg2 {[%clk 0:03:01]}  Nf6 {[%clk 0:03:00]} 4. O-O {[%clk 0:03:01]}  Be7 {[%clk 0:03:00]} 5. c4 {[%clk 0:03:02]}  O-O {[%clk 0:03:00]} 6. b3 {[%clk 0:03:02]}  b6 {[%clk 0:03:00]} 7. d4 {[%clk 0:03:02]}  Bb7 {[%clk 0:02:59]} 8. Nc3 {[%clk 0:03:02]}  Qc8 {[%clk 0:02:43]} 9. Bb2 {[%clk 0:03:00]}  Rd8 {[%clk 0:02:43]} 10. cxd5 {[%clk 0:02:45]}  Nxd5 {[%clk 0:02:40]} 11. Rc1 {[%clk 0:02:45]}  Nd7 {[%clk 0:02:30]} 12. Qc2 {[%clk 0:02:38]}  N7f6 {[%clk 0:02:28]} 13. Qb1 {[%clk 0:02:23]}  a6 {[%clk 0:02:11]} 14. Rfd1 {[%clk 0:02:11]}  Qb8 {[%clk 0:01:45]} 15. Na4 {[%clk 0:01:59]}  Nb4 {[%clk 0:01:26]} 16. a3 {[%clk 0:01:55]}  Be4 {[%clk 0:01:23]} 17. Qa1 {[%clk 0:01:55]}  Nbd5 {[%clk 0:01:23]} 18. Ne5 {[%clk 0:01:54]}  Bxg2 {[%clk 0:01:22]} 19. Kxg2 {[%clk 0:01:55]}  Qb7 {[%clk 0:01:21]} 20. Kg1 {[%clk 0:01:52]}  Bd6 {[%clk 0:00:54]} 21. Nc6 {[%clk 0:01:38]}  Re8 {[%clk 0:00:52]} 22. Qb1 {[%clk 0:01:38]}  Ne7 {[%clk 0:00:50]} 23. Qc2 {[%clk 0:01:32]}  Qxc6 {[%clk 0:00:28]} 24. Qxc6 {[%clk 0:01:33]}  Nxc6 {[%clk 0:00:27]} 25. Rxc6 {[%clk 0:01:34]}  Red8 {[%clk 0:00:24]} 26. Rdc1 {[%clk 0:01:31]}  Kf8 {[%clk 0:00:21]} 27. f3 {[%clk 0:01:31]}  Nd5 {[%clk 0:00:19]} 28. e4 {[%clk 0:01:27]}  Ne7 {[%clk 0:00:16]} 29. R6c2 {[%clk 0:01:27]}  b5 {[%clk 0:00:16]} 30. Nc5 {[%clk 0:01:10]}  Bxc5 {[%clk 0:00:14]} 31. Rxc5 {[%clk 0:01:11]}  c6 {[%clk 0:00:14]} 32. Kf2 {[%clk 0:01:12]}  f6 {[%clk 0:00:14]} 33. g4 {[%clk 0:01:12]}  Kf7 {[%clk 0:00:14]} 34. h4 {[%clk 0:01:13]}  Rd7 {[%clk 0:00:10]} 35. R1c2 {[%clk 0:01:13]}  Rad8 {[%clk 0:00:09]} 36. Ke3 {[%clk 0:01:13]}  Rd6 {[%clk 0:00:09]} 37. h5 {[%clk 0:01:09]}  R6d7 {[%clk 0:00:09]} 38. Rd2 {[%clk 0:01:07]}  Rd6 {[%clk 0:00:09]} 39. Bc3 {[%clk 0:01:07]}  R6d7 {[%clk 0:00:08]} 40. Bb4 {[%clk 0:01:07]}  Rb8 {[%clk 0:00:05]} 41. Rc1 {[%clk 0:01:06]}  Rc8 {[%clk 0:00:04]} 42. Rdc2 {[%clk 0:01:05]}  Rdc7 {[%clk 0:00:03]} 43. Bd6 {[%clk 0:01:06]}  Rd7 {[%clk 0:00:03]} 44. Bxe7 {[%clk 0:01:07]}  Kxe7 {[%clk 0:00:03]} 45. Rxc6 {[%clk 0:01:07]}  Rxc6 {[%clk 0:00:03]} 46. Rxc6 {[%clk 0:01:08]}  Ra7 {[%clk 0:00:03]} 47. d5 {[%clk 0:01:04]}  exd5 {[%clk 0:00:04]} 48. exd5 {[%clk 0:01:05]}  Kd7 {[%clk 0:00:04]} 49. h6 {[%clk 0:01:05]}  gxh6 {[%clk 0:00:04]} 50. Rxf6 {[%clk 0:01:05]}  Ke7 {[%clk 0:00:04]} 51. Rxh6 {[%clk 0:01:06]}  Kf8 {[%clk 0:00:04]} 52. Kd4 {[%clk 0:01:06]}  Rf7 {[%clk 0:00:02]} 53. Ke4 {[%clk 0:01:02]}  Re7+ {[%clk 0:00:02]} 54. Kf5 {[%clk 0:01:00]}  Rc7 {[%clk 0:00:01]} 55. Rxa6 {[%clk 0:00:59]}  Rc3 {[%clk 0:00:01]} 56. f4 {[%clk 0:00:59]}  Rxb3 {[%clk 0:00:01]} 57. Kf6 {[%clk 0:00:58]} 1-0


[Site "https://www.chess.com"]

[Event "Titled Tuesday Blitz October 04 Late 2022"]
[White "Timmermans, Mark"]
[Black "Guzman, Christopher"]
[WhiteFideId "1026399"]
[BlackFideId "6405096"]
[WhiteElo "2460"]
[BlackElo "2272"]
[Result "1/2-1/2"]
[Round "07"]
[TimeControl "180+1"]
[Date "2022.10.04"]
[WhiteClock "0:00:12"]
[BlackClock "0:00:20"]

1. b4 {[%clk 0:03:00]}  Nf6 {[%clk 0:02:59]} 2. Bb2 {[%clk 0:03:00]}  e6 {[%clk 0:02:59]} 3. b5 {[%clk 0:03:00]}  d5 {[%clk 0:02:59]} 4. e3 {[%clk 0:03:00]}  Be7 {[%clk 0:02:59]} 5. c4 {[%clk 0:02:59]}  O-O {[%clk 0:02:57]} 6. Nf3 {[%clk 0:02:59]}  c6 {[%clk 0:02:57]} 7. a4 {[%clk 0:02:58]}  dxc4 {[%clk 0:02:54]} 8. Bxc4 {[%clk 0:02:59]}  cxb5 {[%clk 0:02:53]} 9. axb5 {[%clk 0:02:59]}  Nbd7 {[%clk 0:02:52]} 10. O-O {[%clk 0:02:58]}  b6 {[%clk 0:02:52]} 11. d4 {[%clk 0:02:58]}  Bb7 {[%clk 0:02:52]} 12. Nbd2 {[%clk 0:02:58]}  Ne4 {[%clk 0:02:43]} 13. Nxe4 {[%clk 0:02:58]}  Bxe4 {[%clk 0:02:44]} 14. Nd2 {[%clk 0:02:59]}  Bb7 {[%clk 0:02:44]} 15. Be2 {[%clk 0:03:00]}  Nf6 {[%clk 0:02:43]} 16. Bf3 {[%clk 0:03:00]}  Bxf3 {[%clk 0:02:42]} 17. Nxf3 {[%clk 0:02:55]}  Qd5 {[%clk 0:02:39]} 18. Qe2 {[%clk 0:02:54]}  Rfc8 {[%clk 0:02:39]} 19. Ne5 {[%clk 0:02:53]}  Bd6 {[%clk 0:02:29]} 20. Rfc1 {[%clk 0:02:20]}  Rxc1+ {[%clk 0:02:27]} 21. Rxc1 {[%clk 0:02:21]}  Bxe5 {[%clk 0:02:25]} 22. dxe5 {[%clk 0:02:22]}  Ne4 {[%clk 0:02:24]} 23. Rd1 {[%clk 0:02:13]}  Qb3 {[%clk 0:02:16]} 24. Qd3 {[%clk 0:02:00]}  Qxd3 {[%clk 0:02:14]} 25. Rxd3 {[%clk 0:02:01]}  Nc5 {[%clk 0:02:15]} 26. Rd6 {[%clk 0:01:59]}  h6 {[%clk 0:01:59]} 27. h4 {[%clk 0:01:39]}  Rc8 {[%clk 0:01:55]} 28. Ba3 {[%clk 0:01:33]}  h5 {[%clk 0:01:50]} 29. Rc6 {[%clk 0:01:26]}  Rb8 {[%clk 0:01:40]} 30. Rc7 {[%clk 0:01:19]}  a5 {[%clk 0:01:35]} 31. Kf1 {[%clk 0:01:13]}  Rb7 {[%clk 0:01:07]} 32. Rc6 {[%clk 0:00:56]}  Kh7 {[%clk 0:01:02]} 33. Ke2 {[%clk 0:00:55]}  Kg6 {[%clk 0:01:02]} 34. f4 {[%clk 0:00:48]}  Kf5 {[%clk 0:00:59]} 35. Kf3 {[%clk 0:00:49]}  Ne4 {[%clk 0:00:56]} 36. Bc1 {[%clk 0:00:48]}  Nc5 {[%clk 0:00:49]} 37. Bd2 {[%clk 0:00:46]}  Ne4 {[%clk 0:00:46]} 38. Be1 {[%clk 0:00:45]}  Nc5 {[%clk 0:00:46]} 39. Bxa5 {[%clk 0:00:44]}  bxa5 {[%clk 0:00:47]} 40. Rxc5 {[%clk 0:00:44]}  a4 {[%clk 0:00:48]} 41. Rc4 {[%clk 0:00:44]}  Rxb5 {[%clk 0:00:47]} 42. Rxa4 {[%clk 0:00:44]}  Rb2 {[%clk 0:00:46]} 43. Ra8 {[%clk 0:00:41]}  Kg6 {[%clk 0:00:46]} 44. Rh8 {[%clk 0:00:38]}  Rb3 {[%clk 0:00:43]} 45. Rd8 {[%clk 0:00:37]}  Ra3 {[%clk 0:00:42]} 46. Rd1 {[%clk 0:00:37]}  Ra2 {[%clk 0:00:42]} 47. Rg1 {[%clk 0:00:37]}  Ra3 {[%clk 0:00:38]} 48. g4 {[%clk 0:00:37]}  hxg4+ {[%clk 0:00:39]} 49. Rxg4+ {[%clk 0:00:38]}  Kh6 {[%clk 0:00:39]} 50. Rg1 {[%clk 0:00:36]}  Ra4 {[%clk 0:00:39]} 51. Rc1 {[%clk 0:00:36]}  g6 {[%clk 0:00:37]} 52. Rc7 {[%clk 0:00:35]}  Kg7 {[%clk 0:00:36]} 53. Rc3 {[%clk 0:00:35]}  Rb4 {[%clk 0:00:36]} 54. Kg4 {[%clk 0:00:35]}  Rb1 {[%clk 0:00:33]} 55. Rc2 {[%clk 0:00:33]}  Rg1+ {[%clk 0:00:32]} 56. Kf3 {[%clk 0:00:33]}  Rh1 {[%clk 0:00:32]} 57. Kg3 {[%clk 0:00:33]}  Re1 {[%clk 0:00:30]} 58. Rc3 {[%clk 0:00:31]}  Rg1+ {[%clk 0:00:30]} 59. Kh2 {[%clk 0:00:28]}  Re1 {[%clk 0:00:30]} 60. Kg2 {[%clk 0:00:28]}  Kg8 {[%clk 0:00:28]} 61. Kf2 {[%clk 0:00:26]}  Rh1 {[%clk 0:00:28]} 62. Kg3 {[%clk 0:00:26]}  Rg1+ {[%clk 0:00:25]} 63. Kh2 {[%clk 0:00:26]}  Re1 {[%clk 0:00:25]} 64. Kg2 {[%clk 0:00:22]}  Kg7 {[%clk 0:00:25]} 65. Rd3 {[%clk 0:00:22]}  Kg8 {[%clk 0:00:24]} 66. Rc3 {[%clk 0:00:18]}  Kg7 {[%clk 0:00:24]} 67. Kg3 {[%clk 0:00:18]}  Kg8 {[%clk 0:00:24]} 68. Kh3 {[%clk 0:00:14]}  Kg7 {[%clk 0:00:20]} 69. Kg3 {[%clk 0:00:12]} 1/2-1/2


[Site "https://www.chess.com"]

[Event "Titled Tuesday Blitz October 04 Late 2022"]
[White "Zhigalko, Sergei"]
[Black "Zou, Chen"]
[WhiteFideId "13502956"]
[BlackFideId "8610959"]
[WhiteElo "2662"]
[BlackElo "2325"]
[Result "1-0"]
[Round "07"]
[TimeControl "180+1"]
[Date "2022.10.04"]
[WhiteClock "0:01:02"]
[BlackClock "0:00:17"]

1. e4 {[%clk 0:03:00]}  e5 {[%clk 0:02:59]} 2. Nf3 {[%clk 0:03:00]}  Nc6 {[%clk 0:02:59]} 3. Bc4 {[%clk 0:03:01]}  Bc5 {[%clk 0:02:59]} 4. b4 {[%clk 0:03:01]}  Bxb4 {[%clk 0:02:57]} 5. c3 {[%clk 0:03:00]}  Be7 {[%clk 0:02:55]} 6. d4 {[%clk 0:03:00]}  Na5 {[%clk 0:02:48]} 7. Bd3 {[%clk 0:03:01]}  d6 {[%clk 0:02:43]} 8. dxe5 {[%clk 0:03:01]}  dxe5 {[%clk 0:02:44]} 9. Nxe5 {[%clk 0:03:01]}  Nf6 {[%clk 0:02:44]} 10. O-O {[%clk 0:03:02]}  O-O {[%clk 0:02:44]} 11. Qc2 {[%clk 0:03:02]}  Nd7 {[%clk 0:02:34]} 12. Nxd7 {[%clk 0:02:53]}  Qxd7 {[%clk 0:02:28]} 13. e5 {[%clk 0:02:41]}  h6 {[%clk 0:02:20]} 14. Nd2 {[%clk 0:02:40]}  Rd8 {[%clk 0:02:12]} 15. Bh7+ {[%clk 0:02:33]}  Kh8 {[%clk 0:02:12]} 16. Be4 {[%clk 0:02:23]}  Qe6 {[%clk 0:01:16]} 17. Nf3 {[%clk 0:02:21]}  Bd7 {[%clk 0:01:10]} 18. Re1 {[%clk 0:02:13]}  c5 {[%clk 0:01:07]} 19. Bf4 {[%clk 0:01:51]}  Bc6 {[%clk 0:01:04]} 20. Bf5 {[%clk 0:01:51]}  Qc4 {[%clk 0:01:04]} 21. Bg3 {[%clk 0:01:40]}  Ba4 {[%clk 0:00:50]} 22. Qc1 {[%clk 0:01:21]}  Bd7 {[%clk 0:00:46]} 23. e6 {[%clk 0:01:22]}  Bxe6 {[%clk 0:00:23]} 24. Bxe6 {[%clk 0:01:21]}  fxe6 {[%clk 0:00:24]} 25. Ne5 {[%clk 0:01:22]}  Qd5 {[%clk 0:00:15]} 26. Ng6+ {[%clk 0:01:15]}  Kh7 {[%clk 0:00:16]} 27. Nxe7 {[%clk 0:01:16]}  Qd7 {[%clk 0:00:15]} 28. Qb1+ {[%clk 0:01:11]}  Kh8 {[%clk 0:00:16]} 29. Ng6+ {[%clk 0:01:09]}  Kg8 {[%clk 0:00:17]} 30. h4 {[%clk 0:01:02]} 1-0


[Site "https://www.chess.com"]

[Event "Titled Tuesday Blitz October 04 Late 2022"]
[White "Andreikin, Dmitry"]
[Black "Boros, Denes"]
[WhiteFideId "4158814"]
[BlackFideId "722340"]
[WhiteElo "2736"]
[BlackElo "2464"]
[Result "0-1"]
[Round "08"]
[TimeControl "180+1"]
[Date "2022.10.04"]
[WhiteClock "0:00:03"]
[BlackClock "0:00:13"]

1. Nf3 {[%clk 0:03:00]}  g6 {[%clk 0:03:00]} 2. e4 {[%clk 0:03:00]}  d5 {[%clk 0:03:00]} 3. exd5 {[%clk 0:02:59]}  Qxd5 {[%clk 0:03:01]} 4. Nc3 {[%clk 0:02:58]}  Qd8 {[%clk 0:03:00]} 5. d4 {[%clk 0:02:55]}  Bg7 {[%clk 0:03:00]} 6. Bc4 {[%clk 0:02:54]}  Nh6 {[%clk 0:02:56]} 7. Bf4 {[%clk 0:02:50]}  Nf5 {[%clk 0:02:56]} 8. Qd2 {[%clk 0:02:43]}  O-O {[%clk 0:02:54]} 9. O-O-O {[%clk 0:02:42]}  Nc6 {[%clk 0:02:53]} 10. d5 {[%clk 0:02:32]}  Na5 {[%clk 0:02:49]} 11. Bd3 {[%clk 0:02:31]}  Nd6 {[%clk 0:02:39]} 12. h4 {[%clk 0:02:30]}  Bg4 {[%clk 0:02:33]} 13. h5 {[%clk 0:02:27]}  Nac4 {[%clk 0:02:24]} 14. Bxc4 {[%clk 0:02:20]}  Nxc4 {[%clk 0:02:24]} 15. Qd3 {[%clk 0:02:19]}  b5 {[%clk 0:02:19]} 16. hxg6 {[%clk 0:02:15]}  fxg6 {[%clk 0:02:13]} 17. Bh6 {[%clk 0:02:15]}  Bxf3 {[%clk 0:02:03]} 18. gxf3 {[%clk 0:02:14]}  Qd6 {[%clk 0:01:50]} 19. Bxg7 {[%clk 0:02:07]}  Kxg7 {[%clk 0:01:51]} 20. Rh4 {[%clk 0:01:47]}  Qf6 {[%clk 0:01:12]} 21. Rdh1 {[%clk 0:01:42]}  h5 {[%clk 0:01:12]} 22. Rg1 {[%clk 0:01:01]}  Ne5 {[%clk 0:01:08]} 23. Qe2 {[%clk 0:00:48]}  Nxf3 {[%clk 0:01:06]} 24. Rhh1 {[%clk 0:00:45]}  b4 {[%clk 0:00:49]} 25. Nb5 {[%clk 0:00:35]}  Nxg1 {[%clk 0:00:39]} 26. Rxg1 {[%clk 0:00:36]}  Qxf2 {[%clk 0:00:33]} 27. Qxe7+ {[%clk 0:00:34]}  Rf7 {[%clk 0:00:33]} 28. Qe5+ {[%clk 0:00:34]}  Kh7 {[%clk 0:00:33]} 29. Rd1 {[%clk 0:00:29]}  Rc8 {[%clk 0:00:21]} 30. Qe6 {[%clk 0:00:26]}  Rd8 {[%clk 0:00:18]} 31. Kb1 {[%clk 0:00:13]}  Qf5 {[%clk 0:00:16]} 32. Qe2 {[%clk 0:00:09]}  Rxd5 {[%clk 0:00:15]} 33. Rxd5 {[%clk 0:00:06]}  Qxd5 {[%clk 0:00:16]} 34. a4 {[%clk 0:00:06]}  b3 {[%clk 0:00:14]} 35. Nc3 {[%clk 0:00:04]}  Qh1+ {[%clk 0:00:13]} 36. Nd1 {[%clk 0:00:04]}  Rd7 {[%clk 0:00:12]} 37. Kc1 {[%clk 0:00:02]}  bxc2 {[%clk 0:00:13]} 38. Kxc2 {[%clk 0:00:03]}  Qxd1+ {[%clk 0:00:13]} 0-1


[Site "https://www.chess.com"]

[Event "Titled Tuesday Blitz October 04 Late 2022"]
[White "Bortnyk, Olexandr"]
[Black "Kamsky, Gata"]
[WhiteFideId "14120828"]
[BlackFideId "2000024"]
[WhiteElo "2723"]
[BlackElo "2666"]
[Result "1-0"]
[Round "08"]
[TimeControl "180+1"]
[Date "2022.10.04"]
[WhiteClock "0:00:02"]
[BlackClock "0:00:01"]

1. e4 {[%clk 0:03:00]}  c5 {[%clk 0:02:59]} 2. c3 {[%clk 0:03:01]}  Nf6 {[%clk 0:02:59]} 3. e5 {[%clk 0:03:01]}  Nd5 {[%clk 0:02:59]} 4. d4 {[%clk 0:03:02]}  cxd4 {[%clk 0:02:59]} 5. Nf3 {[%clk 0:03:03]}  Nc6 {[%clk 0:03:00]} 6. cxd4 {[%clk 0:03:04]}  d6 {[%clk 0:02:58]} 7. Bc4 {[%clk 0:03:04]}  dxe5 {[%clk 0:02:58]} 8. Nxe5 {[%clk 0:03:05]}  e6 {[%clk 0:02:47]} 9. O-O {[%clk 0:03:05]}  Nxe5 {[%clk 0:02:42]} 10. dxe5 {[%clk 0:03:05]}  Nb6 {[%clk 0:02:43]} 11. Bd3 {[%clk 0:03:03]}  Bd7 {[%clk 0:02:38]} 12. Nc3 {[%clk 0:03:02]}  Bc6 {[%clk 0:02:37]} 13. Qe2 {[%clk 0:03:00]}  Bb4 {[%clk 0:01:47]} 14. Rd1 {[%clk 0:02:53]}  Qh4 {[%clk 0:01:45]} 15. Ne4 {[%clk 0:02:46]}  h6 {[%clk 0:01:36]} 16. Bb5 {[%clk 0:02:31]}  Rd8 {[%clk 0:00:47]} 17. Bxc6+ {[%clk 0:02:29]}  bxc6 {[%clk 0:00:47]} 18. Rxd8+ {[%clk 0:02:23]}  Qxd8 {[%clk 0:00:46]} 19. h3 {[%clk 0:01:45]}  Qd4 {[%clk 0:00:41]} 20. Bf4 {[%clk 0:01:40]}  Nd5 {[%clk 0:00:40]} 21. Bg3 {[%clk 0:01:33]}  O-O {[%clk 0:00:38]} 22. Rd1 {[%clk 0:01:30]}  Qb6 {[%clk 0:00:38]} 23. Rd3 {[%clk 0:01:23]}  Be7 {[%clk 0:00:37]} 24. b3 {[%clk 0:01:21]}  Rd8 {[%clk 0:00:37]} 25. Nd6 {[%clk 0:01:17]}  Rd7 {[%clk 0:00:33]} 26. Kh2 {[%clk 0:01:07]}  Bf8 {[%clk 0:00:32]} 27. Qg4 {[%clk 0:01:02]}  a5 {[%clk 0:00:31]} 28. Qc4 {[%clk 0:00:44]}  c5 {[%clk 0:00:23]} 29. Qa4 {[%clk 0:00:38]}  Rd8 {[%clk 0:00:21]} 30. Qg4 {[%clk 0:00:37]}  Qb4 {[%clk 0:00:18]} 31. Qh5 {[%clk 0:00:34]}  Rd7 {[%clk 0:00:18]} 32. Qd1 {[%clk 0:00:16]}  Ra7 {[%clk 0:00:17]} 33. a4 {[%clk 0:00:15]}  Ra8 {[%clk 0:00:14]} 34. Nxf7 {[%clk 0:00:11]}  c4 {[%clk 0:00:10]} 35. bxc4 {[%clk 0:00:03]}  Qxc4 {[%clk 0:00:10]} 36. Nd6 {[%clk 0:00:02]}  Qa2 {[%clk 0:00:10]} 37. Qg4 {[%clk 0:00:02]}  Nb4 {[%clk 0:00:10]} 38. Rf3 {[%clk 0:00:02]}  Qd5 {[%clk 0:00:08]} 39. Rf6 {[%clk 0:00:02]}  Nd3 {[%clk 0:00:06]} 40. Qxe6+ {[%clk 0:00:02]}  Qxe6 {[%clk 0:00:06]} 41. Rxe6 {[%clk 0:00:03]}  Nc5 {[%clk 0:00:06]} 42. Rg6 {[%clk 0:00:03]}  Nxa4 {[%clk 0:00:07]} 43. Nf5 {[%clk 0:00:04]}  Kh7 {[%clk 0:00:06]} 44. Rc6 {[%clk 0:00:04]}  Re8 {[%clk 0:00:05]} 45. e6 {[%clk 0:00:04]}  Bb4 {[%clk 0:00:02]} 46. Rc7 {[%clk 0:00:03]}  Rxe6 {[%clk 0:00:02]} 47. Rxg7+ {[%clk 0:00:03]}  Kh8 {[%clk 0:00:02]} 48. Ra7 {[%clk 0:00:03]}  Nb6 {[%clk 0:00:01]} 49. Nd4 {[%clk 0:00:02]} 1-0


[Site "https://www.chess.com"]

[Event "Titled Tuesday Blitz October 04 Late 2022"]
[White "Demidov, Mikhail"]
[Black "Amburgy, Ryan"]
[WhiteFideId "4197143"]
[BlackFideId "30924820"]
[WhiteElo "2520"]
[BlackElo "2121"]
[Result "1-0"]
[Round "08"]
[TimeControl "180+1"]
[Date "2022.10.04"]
[WhiteClock "0:01:19"]
[BlackClock "0:01:02"]

1. Nf3 {[%clk 0:03:00]}  d5 {[%clk 0:02:59]} 2. d4 {[%clk 0:03:00]}  Nf6 {[%clk 0:02:59]} 3. Bf4 {[%clk 0:02:59]}  Bg4 {[%clk 0:02:57]} 4. Ne5 {[%clk 0:02:58]}  Bf5 {[%clk 0:02:57]} 5. c4 {[%clk 0:02:59]}  Nbd7 {[%clk 0:02:50]} 6. Nc3 {[%clk 0:02:57]}  dxc4 {[%clk 0:02:49]} 7. Nxc4 {[%clk 0:02:53]}  e6 {[%clk 0:02:48]} 8. f3 {[%clk 0:02:52]}  Bb4 {[%clk 0:02:36]} 9. e4 {[%clk 0:02:51]}  Bg6 {[%clk 0:02:37]} 10. Be2 {[%clk 0:02:47]}  O-O {[%clk 0:02:37]} 11. O-O {[%clk 0:02:46]}  Nb6 {[%clk 0:02:37]} 12. Be3 {[%clk 0:02:40]}  Re8 {[%clk 0:02:31]} 13. a3 {[%clk 0:02:37]}  Bxc3 {[%clk 0:02:25]} 14. bxc3 {[%clk 0:02:37]}  Qe7 {[%clk 0:02:06]} 15. Ne5 {[%clk 0:02:30]}  Nfd7 {[%clk 0:02:06]} 16. Nxg6 {[%clk 0:02:29]}  hxg6 {[%clk 0:02:06]} 17. a4 {[%clk 0:02:29]}  c5 {[%clk 0:02:02]} 18. a5 {[%clk 0:02:28]}  Nc8 {[%clk 0:02:02]} 19. Qb3 {[%clk 0:02:26]}  b6 {[%clk 0:02:00]} 20. axb6 {[%clk 0:02:24]}  Ncxb6 {[%clk 0:02:01]} 21. Ra5 {[%clk 0:02:20]}  cxd4 {[%clk 0:02:01]} 22. cxd4 {[%clk 0:02:19]}  Rec8 {[%clk 0:01:58]} 23. Rfa1 {[%clk 0:02:16]}  Rc7 {[%clk 0:01:57]} 24. Bf1 {[%clk 0:02:06]}  e5 {[%clk 0:01:43]} 25. dxe5 {[%clk 0:02:00]}  Nxe5 {[%clk 0:01:42]} 26. Bxb6 {[%clk 0:01:56]}  Rb7 {[%clk 0:01:40]} 27. Bc5 {[%clk 0:01:49]}  Rxb3 {[%clk 0:01:12]} 28. Bxe7 {[%clk 0:01:47]}  Nc6 {[%clk 0:01:12]} 29. R5a3 {[%clk 0:01:43]}  Rab8 {[%clk 0:01:06]} 30. Bd6 {[%clk 0:01:38]}  R8b7 {[%clk 0:01:04]} 31. Rxb3 {[%clk 0:01:35]}  Rxb3 {[%clk 0:01:05]} 32. Rc1 {[%clk 0:01:32]}  Nd4 {[%clk 0:01:01]} 33. Bc5 {[%clk 0:01:27]}  Ne6 {[%clk 0:01:01]} 34. Bxa7 {[%clk 0:01:25]}  Rb2 {[%clk 0:01:02]} 35. Be3 {[%clk 0:01:24]}  Ra2 {[%clk 0:01:02]} 36. Bc4 {[%clk 0:01:23]}  Rb2 {[%clk 0:01:02]} 37. Bxe6 {[%clk 0:01:22]}  fxe6 {[%clk 0:01:03]} 38. Rc8+ {[%clk 0:01:22]}  Kf7 {[%clk 0:01:03]} 39. Rc7+ {[%clk 0:01:22]}  Kf8 {[%clk 0:01:03]} 40. Bc5+ {[%clk 0:01:21]}  Kg8 {[%clk 0:01:02]} 41. Rxg7+ {[%clk 0:01:19]} 1-0


[Site "https://www.chess.com"]

[Event "Titled Tuesday Blitz October 04 Late 2022"]
[White "Hristodoulou, Panagiotis"]
[Black "Urazayev, Arystanbek"]
[WhiteFideId "4214340"]
[BlackFideId "13709810"]
[WhiteElo "2272"]
[BlackElo "2441"]
[Result "1-0"]
[Round "08"]
[TimeControl "180+1"]
[Date "2022.10.04"]
[WhiteClock "0:00:32"]
[BlackClock "0:00:02"]

1. e4 {[%clk 0:03:00]}  e5 {[%clk 0:02:59]} 2. Nf3 {[%clk 0:03:00]}  Nc6 {[%clk 0:03:00]} 3. Bc4 {[%clk 0:02:49]}  Bc5 {[%clk 0:02:59]} 4. O-O {[%clk 0:02:49]}  Nf6 {[%clk 0:02:59]} 5. d3 {[%clk 0:02:47]}  d6 {[%clk 0:02:59]} 6. c3 {[%clk 0:02:47]}  a6 {[%clk 0:02:58]} 7. a4 {[%clk 0:02:47]}  Ba7 {[%clk 0:02:59]} 8. Re1 {[%clk 0:02:47]}  h6 {[%clk 0:02:59]} 9. Nbd2 {[%clk 0:02:46]}  O-O {[%clk 0:02:58]} 10. h3 {[%clk 0:02:46]}  Re8 {[%clk 0:02:53]} 11. b4 {[%clk 0:02:45]}  Be6 {[%clk 0:02:53]} 12. Bxe6 {[%clk 0:02:44]}  Rxe6 {[%clk 0:02:54]} 13. Qc2 {[%clk 0:02:44]}  Nh5 {[%clk 0:02:39]} 14. Nf1 {[%clk 0:02:33]}  Ne7 {[%clk 0:02:28]} 15. g3 {[%clk 0:02:25]}  Nf6 {[%clk 0:02:17]} 16. Kg2 {[%clk 0:02:20]}  d5 {[%clk 0:02:13]} 17. Be3 {[%clk 0:02:12]}  Bb8 {[%clk 0:01:46]} 18. Bc5 {[%clk 0:02:08]}  Ng6 {[%clk 0:01:44]} 19. a5 {[%clk 0:01:56]}  c6 {[%clk 0:01:42]} 20. Ne3 {[%clk 0:01:56]}  Bc7 {[%clk 0:01:37]} 21. Nf5 {[%clk 0:01:55]}  Nd7 {[%clk 0:01:26]} 22. Be3 {[%clk 0:01:53]}  Ne7 {[%clk 0:01:25]} 23. g4 {[%clk 0:01:46]}  Kh7 {[%clk 0:01:18]} 24. Kh1 {[%clk 0:01:45]}  Ng8 {[%clk 0:01:13]} 25. Rg1 {[%clk 0:01:43]}  g6 {[%clk 0:01:13]} 26. Ng3 {[%clk 0:01:41]}  Qf6 {[%clk 0:01:12]} 27. Qe2 {[%clk 0:01:37]}  Qe7 {[%clk 0:01:08]} 28. g5 {[%clk 0:01:34]}  d4 {[%clk 0:01:01]} 29. Bc1 {[%clk 0:01:33]}  dxc3 {[%clk 0:00:52]} 30. gxh6 {[%clk 0:01:33]}  f6 {[%clk 0:00:52]} 31. Nh4 {[%clk 0:01:31]}  Nf8 {[%clk 0:00:52]} 32. Ngf5 {[%clk 0:01:28]}  Qf7 {[%clk 0:00:50]} 33. Be3 {[%clk 0:01:19]}  g5 {[%clk 0:00:50]} 34. Bxg5 {[%clk 0:01:15]}  fxg5 {[%clk 0:00:44]} 35. Rxg5 {[%clk 0:01:16]}  Nxh6 {[%clk 0:00:20]} 36. Rag1 {[%clk 0:00:57]}  Qf6 {[%clk 0:00:20]} 37. Qh5 {[%clk 0:00:50]}  c2 {[%clk 0:00:16]} 38. Rg7+ {[%clk 0:00:50]}  Kh8 {[%clk 0:00:15]} 39. Rg8+ {[%clk 0:00:48]}  Kh7 {[%clk 0:00:12]} 40. R1g7+ {[%clk 0:00:48]}  Qxg7 {[%clk 0:00:13]} 41. Rxg7+ {[%clk 0:00:48]}  Kh8 {[%clk 0:00:14]} 42. Rg1 {[%clk 0:00:40]}  Nh7 {[%clk 0:00:05]} 43. Nxh6 {[%clk 0:00:33]}  Rf8 {[%clk 0:00:01]} 44. Nf7+ {[%clk 0:00:31]}  Rxf7 {[%clk 0:00:02]} 45. Qxf7 {[%clk 0:00:32]}  Rg6 {[%clk 0:00:02]} 46. Nxg6# {[%clk 0:00:32]} 1-0


[Site "https://www.chess.com"]